[Event "Live Chess"]
[Site "Chess.com"]
[Date "2023.05.20"]
[Round "-"]
[White "TobyQuaite"]
[Black "LaupMiths"]
[Result "0-1"]
[WhiteElo "1695"]
[BlackElo "1834"]
[TimeControl "300"]
[EndTime "11:11:48 PDT"]
[Termination "LaupMiths won on time"]

1. e4 {[%clk 0:04:58.4]} 1... c5 {[%clk 0:04:57.9]} 2. Nf3 {[%clk 0:04:57.3]}
2... e6 {[%clk 0:04:56.4]} 3. c3 {[%clk 0:04:54.9]} 3... Nf6 {[%clk 0:04:50.3]}
4. Bd3 {[%clk 0:04:49.7]} 4... Nc6 {[%clk 0:04:47.8]} 5. Bc2 {[%clk 0:04:49]}
5... d6 {[%clk 0:04:46.8]} 6. d4 {[%clk 0:04:48.2]} 6... cxd4 {[%clk 0:04:44]}
7. cxd4 {[%clk 0:04:48.1]} 7... Be7 {[%clk 0:04:39.7]} 8. Nc3 {[%clk 0:04:46.3]}
8... O-O {[%clk 0:04:38.4]} 9. a3 {[%clk 0:04:44.3]} 9... Qb6 {[%clk 0:04:32.6]}
10. O-O {[%clk 0:04:42]} 10... e5 {[%clk 0:04:29.1]} 11. d5 {[%clk 0:04:33.5]}
11... Nd4 {[%clk 0:04:28.1]} 12. Nxd4 {[%clk 0:04:33]} 12... exd4 {[%clk
0:04:26.3]} 13. Ne2 {[%clk 0:04:30.1]} 13... Bg4 {[%clk 0:04:23.8]} 14. Kh1
{[%clk 0:04:21.3]} 14... Rac8 {[%clk 0:04:14.7]} 15. f3 {[%clk 0:04:18.9]} 15...
Bd7 {[%clk 0:04:12.1]} 16. Nxd4 {[%clk 0:04:14.6]} 16... Bb5 {[%clk 0:04:01.9]}
17. Nxb5 {[%clk 0:04:11.4]} 17... Qxb5 {[%clk 0:04:00.9]} 18. Qd3 {[%clk
0:04:01.6]} 18... Qxd3 {[%clk 0:03:55.6]} 19. Bxd3 {[%clk 0:04:01.5]} 19... Nd7
{[%clk 0:03:54.7]} 20. Be3 {[%clk 0:03:53.6]} 20... a6 {[%clk 0:03:49.5]} 21.
Rac1 {[%clk 0:03:52]} 21... Bf6 {[%clk 0:03:48.2]} 22. b4 {[%clk 0:03:41.9]}
22... Bb2 {[%clk 0:03:44.2]} 23. Rxc8 {[%clk 0:03:40.3]} 23... Rxc8 {[%clk
0:03:43]} 24. a4 {[%clk 0:03:38.5]} 24... Rc3 {[%clk 0:03:38.7]} 25. Bd4 {[%clk
0:03:26]} 25... Rxd3 {[%clk 0:03:32.1]} 26. Bxb2 {[%clk 0:03:23.1]} 26... Rb3
{[%clk 0:03:31.6]} 27. Ba1 {[%clk 0:02:45.8]} 27... Rxb4 {[%clk 0:03:20.3]} 28.
Rc1 {[%clk 0:02:45.3]} 28... f6 {[%clk 0:03:14.5]} 29. h3 {[%clk 0:02:32.6]}
29... Kf7 {[%clk 0:03:12.7]} 30. Rc7 {[%clk 0:02:31.3]} 30... Ke7 {[%clk
0:03:11.4]} 31. Bc3 {[%clk 0:02:22.7]} 31... Rb3 {[%clk 0:03:03.5]} 32. Rc4
{[%clk 0:02:08.1]} 32... Kd8 {[%clk 0:02:55.4]} 33. Bb4 {[%clk 0:02:05.6]} 33...
Ne5 {[%clk 0:02:50.9]} 34. Rd4 {[%clk 0:01:51.1]} 34... Rb1+ {[%clk 0:02:34.5]}
35. Kh2 {[%clk 0:01:41]} 35... Rb2 {[%clk 0:02:33.4]} 36. Kg3 {[%clk 0:01:34]}
36... Kd7 {[%clk 0:02:31.9]} 37. f4 {[%clk 0:01:30.7]} 37... Nf7 {[%clk
0:02:29.6]} 38. Bd2 {[%clk 0:01:02.9]} 38... b5 {[%clk 0:02:20.3]} 39. axb5
{[%clk 0:01:00.9]} 39... axb5 {[%clk 0:02:18.2]} 40. f5 {[%clk 0:00:50.8]} 40...
Ne5 {[%clk 0:02:15.6]} 41. Bf4 {[%clk 0:00:44]} 41... Rb3+ {[%clk 0:02:01]} 42.
Kh2 {[%clk 0:00:38]} 42... Nd3 {[%clk 0:01:55.6]} 43. Bd2 {[%clk 0:00:31.6]}
43... Ra3 {[%clk 0:01:44.6]} 44. Bb4 {[%clk 0:00:28.7]} 44... Rb3 {[%clk
0:01:38.2]} 45. Bd2 {[%clk 0:00:27.5]} 45... Nc5 {[%clk 0:01:23]} 46. Bb4 {[%clk
0:00:22.8]} 46... Nb7 {[%clk 0:01:17]} 47. Be1 {[%clk 0:00:17.9]} 47... Re3
{[%clk 0:01:05.2]} 48. Bf2 {[%clk 0:00:14.1]} 48... Re2 {[%clk 0:01:02.5]} 49.
Kg3 {[%clk 0:00:13.6]} 49... Nc5 {[%clk 0:01:00.4]} 50. Kf3 {[%clk 0:00:13.1]}
50... Rb2 {[%clk 0:00:51.5]} 51. Rd1 {[%clk 0:00:10.9]} 51... Na6 {[%clk
0:00:46.6]} 52. Rc1 {[%clk 0:00:09.3]} 52... b4 {[%clk 0:00:43.9]} 53. Rc6
{[%clk 0:00:07.5]} 53... Ra2 {[%clk 0:00:40.5]} 54. Bb6 {[%clk 0:00:05.6]} 54...
b3 {[%clk 0:00:38.1]} 55. Bd4 {[%clk 0:00:04.8]} 55... Ra4 {[%clk 0:00:33.2]}
56. g4 {[%clk 0:00:02.3]} 56... Rxd4 {[%clk 0:00:29.7]} 57. Rxa6 {[%clk
0:00:01.5]} 57... Rb4 {[%clk 0:00:28.8]} 0-1

[Event "Live Chess"]
[Site "Chess.com"]
[Date "2023.05.20"]
[Round "-"]
[White "gmnorfolk"]
[Black "mliszewski"]
[Result "1-0"]
[WhiteElo "2154"]
[BlackElo "1902"]
[TimeControl "300"]
[EndTime "11:11:54 PDT"]
[Termination "gmnorfolk won by resignation"]

1. d4 {[%clk 0:04:58]} 1... d5 {[%clk 0:04:58.3]} 2. c4 {[%clk 0:04:56.8]} 2...
e5 {[%clk 0:04:57.3]} 3. dxe5 {[%clk 0:04:55.1]} 3... d4 {[%clk 0:04:56.8]} 4.
Nf3 {[%clk 0:04:54.2]} 4... Nc6 {[%clk 0:04:55.6]} 5. Nbd2 {[%clk 0:04:52.4]}
5... f6 {[%clk 0:04:51.8]} 6. exf6 {[%clk 0:04:49.7]} 6... Nxf6 {[%clk
0:04:51.3]} 7. g3 {[%clk 0:04:48.9]} 7... Be6 {[%clk 0:04:48]} 8. Bg2 {[%clk
0:04:46.7]} 8... Qd7 {[%clk 0:04:46.6]} 9. a3 {[%clk 0:04:37.3]} 9... Bd6 {[%clk
0:04:36.5]} 10. b4 {[%clk 0:04:34.2]} 10... Ne5 {[%clk 0:04:31.1]} 11. Nxe5
{[%clk 0:04:32.2]} 11... Bxe5 {[%clk 0:04:29.8]} 12. Bxb7 {[%clk 0:04:31.5]}
12... Rb8 {[%clk 0:04:28.2]} 13. Bg2 {[%clk 0:04:30.3]} 13... O-O {[%clk
0:04:27.2]} 14. Nf3 {[%clk 0:04:20.1]} 14... Bxc4 {[%clk 0:04:12.8]} 15. Nxe5
{[%clk 0:04:16.2]} 15... Qe6 {[%clk 0:04:11]} 16. Nxc4 {[%clk 0:04:12.9]} 16...
Qxc4 {[%clk 0:04:09.9]} 17. O-O {[%clk 0:04:07.1]} 17... Rfe8 {[%clk 0:04:07.7]}
18. Qd3 {[%clk 0:04:04]} 18... Qe6 {[%clk 0:03:57.8]} 19. Qxd4 {[%clk
0:03:56.9]} 19... Qxe2 {[%clk 0:03:56.7]} 20. Be3 {[%clk 0:03:49.8]} 20... Qh5
{[%clk 0:03:51.9]} 21. h3 {[%clk 0:03:45.6]} 21... Rbd8 {[%clk 0:03:47.3]} 22.
Qh4 {[%clk 0:03:36]} 22... Qe5 {[%clk 0:03:43.7]} 23. Bxa7 {[%clk 0:03:26.1]}
23... Rd2 {[%clk 0:03:37.6]} 24. Qc4+ {[%clk 0:03:19.9]} 24... Kh8 {[%clk
0:03:34.2]} 25. Be3 {[%clk 0:03:16.4]} 25... Rb2 {[%clk 0:03:30.9]} 26. Bd4
{[%clk 0:03:09.5]} 1-0

[Event "Live Chess"]
[Site "Chess.com"]
[Date "2023.05.20"]
[Round "-"]
[White "Jeffaroow"]
[Black "Tushinskiy"]
[Result "0-1"]
[WhiteElo "460"]
[BlackElo "2108"]
[TimeControl "300"]
[EndTime "11:12:08 PDT"]
[Termination "Tushinskiy won by resignation"]

1. e4 {[%clk 0:04:59]} 1... e5 {[%clk 0:04:58.8]} 2. Nf3 {[%clk 0:04:57.6]} 2...
d6 {[%clk 0:04:58.5]} 3. d4 {[%clk 0:04:56.4]} 3... Bg4 {[%clk 0:04:58]} 4. dxe5
{[%clk 0:04:54.1]} 4... Nd7 {[%clk 0:04:53.7]} 5. exd6 {[%clk 0:04:52.4]} 5...
Bxd6 {[%clk 0:04:53.6]} 6. Nc3 {[%clk 0:04:50.9]} 6... Qe7 {[%clk 0:04:51.9]} 7.
Bd3 {[%clk 0:04:47.2]} 7... Ngf6 {[%clk 0:04:50.9]} 8. O-O {[%clk 0:04:45.9]}
8... O-O-O {[%clk 0:04:49.9]} 9. h3 {[%clk 0:04:44]} 9... Bh5 {[%clk 0:04:48.3]}
10. Re1 {[%clk 0:04:40.1]} 10... Ne5 {[%clk 0:04:43.6]} 11. Nxe5 {[%clk
0:04:36.7]} 11... Bxe5 {[%clk 0:04:43.5]} 12. f3 {[%clk 0:04:27.8]} 12... h6
{[%clk 0:04:40.7]} 13. g4 {[%clk 0:04:02.8]} 13... Bg6 {[%clk 0:04:39]} 14. f4
{[%clk 0:03:55]} 14... Bd4+ {[%clk 0:04:36.8]} 15. Kf1 {[%clk 0:03:52.5]} 15...
Bxc3 {[%clk 0:04:28.5]} 16. bxc3 {[%clk 0:03:49.8]} 16... Bxe4 {[%clk
0:04:26.5]} 17. Rxe4 {[%clk 0:03:42]} 17... Nxe4 {[%clk 0:04:26.4]} 18. Qf3
{[%clk 0:03:21.4]} 18... Rhe8 {[%clk 0:04:22.7]} 19. Bxe4 {[%clk 0:03:11.7]}
19... Qxe4 {[%clk 0:04:22.6]} 20. Qg2 {[%clk 0:03:01.6]} 20... Rd1+ {[%clk
0:04:19.7]} 21. Kf2 {[%clk 0:02:55.7]} 21... Qxg2+ {[%clk 0:04:16.3]} 22. Kxg2
{[%clk 0:02:53.9]} 22... Ree1 {[%clk 0:04:15.2]} 0-1

[Event "Live Chess"]
[Site "Chess.com"]
[Date "2023.05.20"]
[Round "-"]
[White "Davidagye"]
[Black "GMHarry-youtube"]
[Result "1-0"]
[WhiteElo "1679"]
[BlackElo "2112"]
[TimeControl "300"]
[EndTime "11:12:14 PDT"]
[Termination "Davidagye won by checkmate"]

1. b4 {[%clk 0:04:58]} 1... c6 {[%clk 0:04:57.7]} 2. Bb2 {[%clk 0:04:55.9]} 2...
Qb6 {[%clk 0:04:55.1]} 3. a3 {[%clk 0:04:52.8]} 3... a5 {[%clk 0:04:54.1]} 4. c3
{[%clk 0:04:52]} 4... axb4 {[%clk 0:04:50.1]} 5. cxb4 {[%clk 0:04:50.2]} 5...
Nf6 {[%clk 0:04:47]} 6. d4 {[%clk 0:04:33.8]} 6... d5 {[%clk 0:04:44.9]} 7. e3
{[%clk 0:04:32.7]} 7... e6 {[%clk 0:04:43.3]} 8. Nf3 {[%clk 0:04:31.9]} 8... Na6
{[%clk 0:04:41.2]} 9. Bd3 {[%clk 0:04:30.5]} 9... Nc7 {[%clk 0:04:39.9]} 10. O-O
{[%clk 0:04:29]} 10... h6 {[%clk 0:04:34.6]} 11. Qd2 {[%clk 0:04:28.1]} 11... g5
{[%clk 0:04:33.7]} 12. Nc3 {[%clk 0:04:26.7]} 12... Bd6 {[%clk 0:04:32.2]} 13.
Rfe1 {[%clk 0:04:24.7]} 13... Na6 {[%clk 0:04:12.5]} 14. h3 {[%clk 0:04:21.4]}
14... Qc7 {[%clk 0:04:08.3]} 15. e4 {[%clk 0:04:20.4]} 15... Bf4 {[%clk
0:04:05.2]} 16. Qe2 {[%clk 0:04:16.5]} 16... O-O {[%clk 0:04:01.1]} 17. e5
{[%clk 0:04:14.4]} 17... Nh5 {[%clk 0:03:58.8]} 18. Nxg5 {[%clk 0:04:09.5]}
18... Ng3 {[%clk 0:03:48.4]} 19. fxg3 {[%clk 0:04:05.1]} 19... Bxg5 {[%clk
0:03:48.3]} 20. h4 {[%clk 0:04:01]} 20... Be7 {[%clk 0:03:46.6]} 21. Qh5 {[%clk
0:03:59.8]} 21... Kg7 {[%clk 0:03:45.2]} 22. Bc1 {[%clk 0:03:57]} 22... Rh8
{[%clk 0:03:43.3]} 23. Rf1 {[%clk 0:03:55.3]} 23... Bd8 {[%clk 0:03:38.3]} 24.
Rxf7+ {[%clk 0:03:53.6]} 24... Qxf7 {[%clk 0:03:35.3]} 25. Qg4+ {[%clk
0:03:49.8]} 25... Kf8 {[%clk 0:03:34.1]} 26. Be3 {[%clk 0:03:48.1]} 26... Nxb4
{[%clk 0:03:32.7]} 27. Rf1 {[%clk 0:03:45.8]} 27... Nxd3 {[%clk 0:03:28.5]} 28.
Rxf7+ {[%clk 0:03:44.1]} 28... Kxf7 {[%clk 0:03:28.4]} 29. Bd2 {[%clk
0:03:32.6]} 29... Rg8 {[%clk 0:03:20.1]} 30. Qf3+ {[%clk 0:03:31.1]} 30... Ke8
{[%clk 0:03:14.2]} 31. Qxd3 {[%clk 0:03:27.5]} 31... Rxa3 {[%clk 0:03:13.7]} 32.
Qf3 {[%clk 0:03:25.2]} 32... b5 {[%clk 0:03:07.3]} 33. Qh5+ {[%clk 0:03:23.3]}
33... Ke7 {[%clk 0:03:00.6]} 34. Ne2 {[%clk 0:03:10.2]} 34... Ba5 {[%clk
0:02:46.6]} 35. Bxh6 {[%clk 0:03:07]} 35... b4 {[%clk 0:02:41.1]} 36. Bg5+
{[%clk 0:03:05.7]} 36... Kf8 {[%clk 0:02:35.2]} 37. Nf4 {[%clk 0:02:57.7]} 37...
b3 {[%clk 0:02:15.9]} 38. Qh7 {[%clk 0:02:56]} 38... Bb4 {[%clk 0:00:57.2]} 39.
Ng6+ {[%clk 0:02:28.1]} 39... Rxg6 {[%clk 0:00:51.9]} 40. Qxg6 {[%clk
0:02:26.7]} 40... Be7 {[%clk 0:00:39.7]} 41. Bxe7+ {[%clk 0:02:14.6]} 41... Kxe7
{[%clk 0:00:37.9]} 42. Qf6+ {[%clk 0:02:13.5]} 42... Kd7 {[%clk 0:00:36.8]} 43.
Qf7+ {[%clk 0:02:12.8]} 43... Kd8 {[%clk 0:00:34.6]} 44. Qf8+ {[%clk 0:02:12.1]}
44... Kc7 {[%clk 0:00:34.5]} 45. Qxa3 {[%clk 0:02:11.5]} 45... c5 {[%clk
0:00:32.8]} 46. Qxc5+ {[%clk 0:02:10.1]} 46... Kd7 {[%clk 0:00:31.9]} 47. Qb5+
{[%clk 0:02:08.6]} 47... Kd8 {[%clk 0:00:30.8]} 48. Qxb3 {[%clk 0:02:08.5]}
48... Bd7 {[%clk 0:00:30.4]} 49. Qb6+ {[%clk 0:02:05.9]} 49... Kc8 {[%clk
0:00:29]} 50. Qd6 {[%clk 0:02:05.8]} 50... Kd8 {[%clk 0:00:25.9]} 51. h5 {[%clk
0:02:04.3]} 51... Ke8 {[%clk 0:00:24.9]} 52. h6 {[%clk 0:02:03]} 52... Bb5
{[%clk 0:00:13.5]} 53. h7 {[%clk 0:01:59.1]} 53... Bf1 {[%clk 0:00:13.4]} 54.
h8=R+ {[%clk 0:01:56.6]} 54... Kf7 {[%clk 0:00:13.3]} 55. Qf8+ {[%clk
0:01:55.6]} 55... Kg6 {[%clk 0:00:11.5]} 56. Rh6+ {[%clk 0:01:55.5]} 56... Kg5
{[%clk 0:00:10.7]} 57. Qf6+ {[%clk 0:01:55.4]} 57... Kg4 {[%clk 0:00:10]} 58.
Rh4+ {[%clk 0:01:55]} 58... Kxg3 {[%clk 0:00:09.3]} 59. Qf4# {[%clk 0:01:54.9]}
1-0

[Event "Live Chess"]
[Site "Chess.com"]
[Date "2023.05.20"]
[Round "-"]
[White "AbilifyXL"]
[Black "WelshTiger"]
[Result "0-1"]
[WhiteElo "1951"]
[BlackElo "2431"]
[TimeControl "300"]
[EndTime "11:12:22 PDT"]
[Termination "WelshTiger won by resignation"]

1. d4 {[%clk 0:04:56.4]} 1... d5 {[%clk 0:04:57.6]} 2. c4 {[%clk 0:04:55.8]}
2... e6 {[%clk 0:04:56.5]} 3. Nc3 {[%clk 0:04:55.4]} 3... c5 {[%clk 0:04:55.3]}
4. cxd5 {[%clk 0:04:54.9]} 4... exd5 {[%clk 0:04:54.3]} 5. Nf3 {[%clk
0:04:54.4]} 5... Nc6 {[%clk 0:04:53.5]} 6. Bg5 {[%clk 0:04:53.9]} 6... f6 {[%clk
0:04:52.1]} 7. Bf4 {[%clk 0:04:52.7]} 7... c4 {[%clk 0:04:51.3]} 8. e3 {[%clk
0:04:51.7]} 8... Bb4 {[%clk 0:04:50.2]} 9. Be2 {[%clk 0:04:50]} 9... Nge7 {[%clk
0:04:49]} 10. O-O {[%clk 0:04:48.7]} 10... O-O {[%clk 0:04:45]} 11. a3 {[%clk
0:04:47.1]} 11... Bd6 {[%clk 0:04:43.7]} 12. Bg3 {[%clk 0:04:45.2]} 12... Rb8
{[%clk 0:04:40.2]} 13. b3 {[%clk 0:04:44]} 13... b5 {[%clk 0:04:38.9]} 14. bxc4
{[%clk 0:04:40.7]} 14... bxc4 {[%clk 0:04:36.6]} 15. Na4 {[%clk 0:04:39.2]}
15... Na5 {[%clk 0:04:30.4]} 16. Bxd6 {[%clk 0:04:35.8]} 16... Qxd6 {[%clk
0:04:29.1]} 17. Nc5 {[%clk 0:04:35.4]} 17... Nb3 {[%clk 0:04:26.6]} 18. Nxb3
{[%clk 0:04:32.3]} 18... Rxb3 {[%clk 0:04:26.5]} 19. Nd2 {[%clk 0:04:29.1]}
19... Rb6 {[%clk 0:04:14.7]} 20. Bf3 {[%clk 0:04:27.5]} 20... Bf5 {[%clk
0:04:05.9]} 21. Re1 {[%clk 0:04:23.6]} 21... Rfb8 {[%clk 0:03:58.4]} 22. e4
{[%clk 0:04:22.3]} 22... Bxe4 {[%clk 0:03:31.2]} 23. Bxe4 {[%clk 0:04:18.6]}
23... c3 {[%clk 0:03:29.7]} 24. Bxh7+ {[%clk 0:04:07.7]} 24... Kxh7 {[%clk
0:03:28.6]} 25. Qc2+ {[%clk 0:04:06.4]} 25... Kg8 {[%clk 0:03:27.1]} 26. Qxc3
{[%clk 0:04:05.7]} 26... Nf5 {[%clk 0:03:21.7]} 27. Nf3 {[%clk 0:04:00.5]} 27...
Rb3 {[%clk 0:03:15.7]} 28. Qc2 {[%clk 0:03:58.2]} 28... Rxf3 {[%clk 0:03:13.4]}
29. gxf3 {[%clk 0:03:54]} 29... Nh4 {[%clk 0:03:08.4]} 30. Re3 {[%clk 0:03:47]}
30... Qf4 {[%clk 0:03:07.6]} 31. Rae1 {[%clk 0:03:26.7]} 31... Nxf3+ {[%clk
0:03:04.3]} 32. Rxf3 {[%clk 0:03:24.4]} 32... Qxf3 {[%clk 0:03:04.2]} 33. Re3
{[%clk 0:03:20.7]} 33... Qg4+ {[%clk 0:03:00.1]} 34. Rg3 {[%clk 0:03:17.6]}
34... Qxd4 {[%clk 0:02:59]} 35. Qg6 {[%clk 0:03:09.7]} 35... f5 {[%clk
0:01:54.6]} 36. Qxf5 {[%clk 0:02:56]} 36... Re8 {[%clk 0:01:44.6]} 37. Rf3
{[%clk 0:02:40.1]} 37... Qf6 {[%clk 0:01:19.8]} 38. Qxd5+ {[%clk 0:02:32.6]}
38... Qe6 {[%clk 0:01:16.1]} 39. Qxe6+ {[%clk 0:02:27.7]} 39... Rxe6 {[%clk
0:01:16]} 40. Kg2 {[%clk 0:02:22.3]} 40... Re4 {[%clk 0:01:14.9]} 41. h3 {[%clk
0:02:20.5]} 41... Re5 {[%clk 0:01:12.5]} 42. Re3 {[%clk 0:02:17.8]} 42... Rd5
{[%clk 0:01:11.1]} 43. f4 {[%clk 0:02:14]} 43... Rd2+ {[%clk 0:01:09.1]} 44. Kf3
{[%clk 0:02:13.2]} 44... Kf7 {[%clk 0:01:08.6]} 45. Rb3 {[%clk 0:02:10]} 45...
Rd7 {[%clk 0:01:06.6]} 46. a4 {[%clk 0:02:07.4]} 46... Kf6 {[%clk 0:01:04.8]}
47. a5 {[%clk 0:02:06.4]} 47... Rd5 {[%clk 0:01:03.6]} 48. Ra3 {[%clk
0:02:01.4]} 48... Rb5 {[%clk 0:01:01.8]} 49. a6 {[%clk 0:02:00.3]} 49... g6
{[%clk 0:01:00]} 50. Kg4 {[%clk 0:01:59.8]} 50... Rb1 {[%clk 0:00:58.4]} 51. Rd3
{[%clk 0:01:56.1]} 51... Rb6 {[%clk 0:00:57.2]} 52. Ra3 {[%clk 0:01:52.6]} 52...
Rb1 {[%clk 0:00:56.3]} 53. h4 {[%clk 0:01:50.6]} 53... Rg1+ {[%clk 0:00:55.7]}
54. Kf3 {[%clk 0:01:48.2]} 54... Rh1 {[%clk 0:00:55.3]} 55. Kg3 {[%clk
0:01:47.3]} 55... Rg1+ {[%clk 0:00:53.8]} 56. Kh3 {[%clk 0:01:45.4]} 56... Rf1
{[%clk 0:00:51.6]} 57. Rb3 {[%clk 0:01:38.8]} 57... Rxf4 {[%clk 0:00:49.3]} 58.
Rb7 {[%clk 0:01:38.1]} 58... Ra4 {[%clk 0:00:48.6]} 59. Rxa7 {[%clk 0:01:37.4]}
59... Kf5 {[%clk 0:00:47.8]} 60. Rf7+ {[%clk 0:01:34.5]} 60... Ke6 {[%clk
0:00:47.2]} 61. Rg7 {[%clk 0:01:32.4]} 61... Kf6 {[%clk 0:00:46.3]} 62. Ra7
{[%clk 0:01:31]} 62... Kf5 {[%clk 0:00:45.5]} 63. Ra8 {[%clk 0:01:29.4]} 63...
Ra3+ {[%clk 0:00:43.9]} 64. Kg2 {[%clk 0:01:27.9]} 64... Kg4 {[%clk 0:00:43.4]}
65. Rg8 {[%clk 0:01:25.6]} 65... Rxa6 {[%clk 0:00:41]} 66. h5 {[%clk 0:01:22.9]}
66... Kxh5 {[%clk 0:00:39.5]} 67. Kg3 {[%clk 0:01:21.7]} 67... Kg5 {[%clk
0:00:39]} 68. Rc8 {[%clk 0:01:20]} 68... Ra3+ {[%clk 0:00:38.6]} 69. Kf2 {[%clk
0:01:18.3]} 69... Kg4 {[%clk 0:00:37.6]} 70. Rc4+ {[%clk 0:01:17.6]} 70... Kh5
{[%clk 0:00:36.9]} 71. Kg2 {[%clk 0:01:15]} 71... g5 {[%clk 0:00:35.9]} 72. Rb4
{[%clk 0:01:12.4]} 72... g4 {[%clk 0:00:35.1]} 73. Rb5+ {[%clk 0:01:10.5]} 73...
Kh4 {[%clk 0:00:34.3]} 74. Rb8 {[%clk 0:01:10.2]} 74... Ra2+ {[%clk 0:00:33.6]}
75. Kg1 {[%clk 0:01:09.2]} 75... Kh3 {[%clk 0:00:33.1]} 76. Rh8+ {[%clk
0:01:04.9]} 76... Kg3 {[%clk 0:00:32.3]} 77. Kf1 {[%clk 0:01:03.8]} 77... Ra1+
{[%clk 0:00:31.7]} 78. Ke2 {[%clk 0:01:02.7]} 78... Kg2 {[%clk 0:00:31.3]} 79.
Rg8 {[%clk 0:01:00.9]} 79... g3 {[%clk 0:00:30.8]} 80. Ke3 {[%clk 0:00:59.7]}
80... Ra7 {[%clk 0:00:30.3]} 81. Ke2 {[%clk 0:00:58.9]} 81... Re7+ {[%clk
0:00:29.3]} 82. Kd2 {[%clk 0:00:57.4]} 82... Re5 {[%clk 0:00:29]} 83. Kd3 {[%clk
0:00:55.9]} 83... Kf2 {[%clk 0:00:25.9]} 84. Rf8+ {[%clk 0:00:54.3]} 84... Kg1
{[%clk 0:00:25.3]} 85. Rg8 {[%clk 0:00:53.1]} 85... g2 {[%clk 0:00:24.7]} 86.
Kd2 {[%clk 0:00:52.5]} 86... Kf2 {[%clk 0:00:23.5]} 87. Rf8+ {[%clk 0:00:51.7]}
87... Kg3 {[%clk 0:00:22.9]} 88. Rg8+ {[%clk 0:00:50.9]} 88... Kf3 {[%clk
0:00:22.4]} 89. Rf8+ {[%clk 0:00:50.1]} 89... Kg4 {[%clk 0:00:21.6]} 90. Rg8+
{[%clk 0:00:44.9]} 90... Rg5 {[%clk 0:00:20.9]} 91. Re8 {[%clk 0:00:43.3]} 91...
g1=Q {[%clk 0:00:19.6]} 92. Re2 {[%clk 0:00:43.1]} 92... Qd4+ {[%clk 0:00:18.4]}
93. Ke1 {[%clk 0:00:42.2]} 93... Ra5 {[%clk 0:00:18]} 94. Rg2+ {[%clk 0:00:39]}
94... Kf3 {[%clk 0:00:17.5]} 95. Rg3+ {[%clk 0:00:28.6]} 95... Kxg3 {[%clk
0:00:16]} 96. Ke2 {[%clk 0:00:26.9]} 96... Ra2+ {[%clk 0:00:14.5]} 0-1

[Event "Live Chess"]
[Site "Chess.com"]
[Date "2023.05.20"]
[Round "-"]
[White "boilerboy1"]
[Black "worldchessleaguelive"]
[Result "0-1"]
[WhiteElo "1081"]
[BlackElo "1396"]
[TimeControl "300"]
[EndTime "11:12:28 PDT"]
[Termination "worldchessleaguelive won on time"]

1. e4 {[%clk 0:04:55.2]} 1... d5 {[%clk 0:04:58.9]} 2. exd5 {[%clk 0:04:53.7]}
2... Qxd5 {[%clk 0:04:58.5]} 3. Nc3 {[%clk 0:04:51.5]} 3... Qd8 {[%clk
0:04:57.5]} 4. Nf3 {[%clk 0:04:49.7]} 4... Nf6 {[%clk 0:04:56.7]} 5. d4 {[%clk
0:04:47.4]} 5... Bg4 {[%clk 0:04:53.6]} 6. Be2 {[%clk 0:04:44.5]} 6... e6 {[%clk
0:04:51.7]} 7. O-O {[%clk 0:04:40.8]} 7... Be7 {[%clk 0:04:50.7]} 8. d5 {[%clk
0:04:37.9]} 8... exd5 {[%clk 0:04:44.9]} 9. Re1 {[%clk 0:04:33.4]} 9... O-O
{[%clk 0:04:42.8]} 10. Bg5 {[%clk 0:04:25.1]} 10... Nbd7 {[%clk 0:04:38.6]} 11.
h4 {[%clk 0:03:54]} 11... h6 {[%clk 0:04:30.9]} 12. Bf4 {[%clk 0:03:51.2]} 12...
c6 {[%clk 0:04:16.6]} 13. g3 {[%clk 0:03:48.8]} 13... Bb4 {[%clk 0:04:10.3]} 14.
Qd4 {[%clk 0:03:40.1]} 14... Bxc3 {[%clk 0:04:04.6]} 15. Qxc3 {[%clk 0:03:38.4]}
15... Re8 {[%clk 0:04:02]} 16. Bd3 {[%clk 0:03:22.5]} 16... Bxf3 {[%clk
0:03:53.8]} 17. Rxe8+ {[%clk 0:03:17.2]} 17... Qxe8 {[%clk 0:03:49.6]} 18. Bf1
{[%clk 0:03:14.5]} 18... Bh5 {[%clk 0:03:34.1]} 19. Bg2 {[%clk 0:02:59.9]} 19...
Qf8 {[%clk 0:03:22.4]} 20. Be3 {[%clk 0:02:42.1]} 20... c5 {[%clk 0:03:12.4]}
21. Qb3 {[%clk 0:02:29]} 21... d4 {[%clk 0:03:04.3]} 22. Bf4 {[%clk 0:02:22.6]}
22... Nb6 {[%clk 0:02:38.6]} 23. a3 {[%clk 0:02:13.3]} 23... c4 {[%clk
0:02:34.6]} 24. Qb5 {[%clk 0:02:06.4]} 24... Bg6 {[%clk 0:02:23]} 25. Be5 {[%clk
0:01:58.8]} 25... Ne4 {[%clk 0:02:08.2]} 26. Bxd4 {[%clk 0:01:51.7]} 26... Rd8
{[%clk 0:02:01.5]} 27. c3 {[%clk 0:01:46.9]} 27... Qe8 {[%clk 0:01:37.6]} 28.
Qe5 {[%clk 0:01:16.2]} 28... Qxe5 {[%clk 0:01:35.1]} 29. Bxe5 {[%clk 0:01:14.2]}
29... Rd2 {[%clk 0:01:32]} 30. Bd4 {[%clk 0:00:52.5]} 30... Rxb2 {[%clk
0:01:26.4]} 31. Re1 {[%clk 0:00:42.1]} 31... Nf6 {[%clk 0:01:09.2]} 32. Bxb7
{[%clk 0:00:24]} 32... Rb1 {[%clk 0:01:05.9]} 33. Rxb1 {[%clk 0:00:09.3]} 33...
Bxb1 {[%clk 0:01:05.5]} 0-1